Cogmind - Beta 15 @@@ ROGUE MODE // 2025.06.16 @ 18:11:37 Player: Sen Result: Destroyed by B-75 Beast with Magnetic Acceleration Cannon Performance ------------- Evolutions (2) 1000 Regions Visited (4) 800 Robots Destroyed (57) 285 Value Destroyed (1752) 1752 Prototype IDs (0) 0 Alien Tech Used (0) 0 Bonus (249) 249 TOTAL SCORE: 4086 Bonus ------- High Alert Combat Kills 49 Entered Garrisons 200 Cogmind --------- Core Integrity 0/550 Matter 110/300 Energy 99/100 System Corruption 0% Temperature Hot (252) Movement Treading (160) Location -8/Garrison Parts ------- > --- POWER (1) -------- (None) > --- PROPULSION (4) --- Light Treads Light Treads > --- UTILITY (4) ------ Thermal Shield > --- WEAPON (2) ------- Gauss Rifle > --- INVENTORY (5) ---- Light Nuclear Core Signal Interpreter Relay Coupler [NC] (26) Peak State ------------ > --- POWER ------------ Nuclear Core > --- PROPULSION ------- Light Treads Light Treads VSS Leg VSS Leg > --- UTILITY ---------- Small Storage Unit Thermal Shield Hacking Suite > --- WEAPON ----------- Heavy Assault Rifle Gauss Rifle > --- INVENTORY -------- Ion Engine Light Nuclear Core Light Treads Signal Interpreter Relay Coupler [NC] Heavy EM Pulse Gun [Rating: 26] Favorites ----------- Power Ion Engine Engine Ion Engine Power Core Light Nuclear Core Propulsion Aluminum Leg Treads Light Treads Leg Aluminum Leg Utility Small Storage Unit Device Terrain Scanner Storage Small Storage Unit Hackware Hacking Suite Protection Medium Armor Plating Weapon Shotgun Energy Gun Heavy EM Pulse Gun Ballistic Gun Shotgun Ballistic Cannon Assault Cannon Build | -11 -10 -9 -8 -8 ------- Run | Yrd Mat Mat Mat Gar Slots Evolved 4 | . . 2 2 . Power . | . . . . . Propulsion 2 | . . 2 . . Utility 2 | . . . 2 . Weapon . | . . . . . Parts Attached 47 | 8 3 14 11 11 Power 6 | 2 . 1 2 1 Engine 4 | 2 . 1 1 . Core 2 | . . . 1 1 Reactor . | . . . . . Propulsion 20 | 2 . 9 4 5 Treads 3 | . . . . 3 Leg 17 | 2 . 9 4 2 Wheel . | . . . . . Hover . | . . . . . Flight . | . . . . . Utility 9 | 1 1 1 3 3 Device 2 | . 1 . . 1 Storage 1 | 1 . . . . Processor . | . . . . . Hackware 1 | . . 1 . . Protection 5 | . . . 3 2 Artifact . | . . . . . Weapon 12 | 3 2 3 2 2 Energy Gun 3 | 1 . 2 . . Energy Cannon . | . . . . . Ballistic Gun 8 | 2 2 1 1 2 Ballistic Cannon 1 | . . . 1 . Launcher . | . . . . . Special Weapon . | . . . . . Impact Weapon . | . . . . . Slashing Weapon . | . . . . . Piercing Weapon . | . . . . . Special Melee Weapon . | . . . . . Unidentified Prototypes . | . . . . . Parts Lost 18 | . . 1 3 14 Power 3 | . . 1 . 2 Propulsion 6 | . . . 1 5 Utility 4 | . . . . 4 Weapon 5 | . . . 2 3 Highest Loss Streak 9 | . . 1 1 9 To Critical Strikes . | . . . . . Average Backups 6 | 1 6 7 7 7 Power 1 | . 1 1 2 2 Propulsion 1 | . 1 1 2 1 Utility 1 | . . 2 1 1 Weapon 1 | . 2 2 1 1 Tool/Special . | . . . . . Unused Backups 8 | . 2 1 1 4 Power 2 | . . . . 2 Propulsion 2 | . 2 . . . Utility 3 | . . 1 . 2 Weapon 1 | . . . 1 . Tool/Special . | . . . . . Average Slot Usage (%) 96 | . 95 98 98 92 Engine 8 | . 14 10 6 . Core 2 | . . . 2 8 Treads 1 | . . . . 6 Leg 35 | . 28 42 35 27 Device 5 | . 10 1 9 3 Storage 10 | . 14 11 9 8 Hackware 7 | . . 9 9 9 Protection 4 | . . . 8 12 Energy Gun 1 | . . 3 2 . Ballistic Gun 17 | . 28 18 12 10 Ballistic Cannon 1 | . . . 3 5 Peak Build Rating 26 | 6 10 14 23 26 Average Rating 14 | 5 8 13 19 21 On Entrance 10 | . 6 10 14 23 Naked Turns . | . . . . . Heaviest Build 28 | 13 17 17 28 28 Greatest Support 45 | 20 20 40 45 45 Greatest Overweight (x) 2 | 2 . . . . Average Overweight (x) . | . . . . . Largest Inventory Capacity 8 | 8 8 8 8 8 Average Capacity 7 | 7 8 8 8 7 Most Carried 8 | 2 8 8 8 8 Average Carried 6 | 1 6 7 7 7 Final Capacity 8 | 8 8 8 8 5 Final Carried 8 | 2 8 8 7 3 Class Distribution -------------------- 69% | Scavenger-Mutant 30% | Mutant Dominant Class ---------------- Mutant | -10/Materials Scavenger-Mutant | -9/Materials Scavenger-Mutant | -8/Materials Scavenger-Mutant | -8/Garrison Resources | -11 -10 -9 -8 -8 ----------- Run | Yrd Mat Mat Mat Gar Matter Collected 1603 | 208 219 487 368 321 Remotely . | . . . . . Salvage Created 1588 | 28 219 554 511 276 Parts 119 | 2 12 39 43 23 Haulers Intercepted 1 | . . 1 . . Recyclers Shooed 2 | . 1 . 1 . Parts Field Recycled . | . . . . . Retrieved Matter . | . . . . . Parts Self-Destructed . | . . . . . Prevented . | . . . . . Kills | -11 -10 -9 -8 -8 ------- Run | Yrd Mat Mat Mat Gar Combat Hostiles Destroyed 50 | . 5 15 20 10 Guns 40 | . 5 15 17 3 Cannons 10 | . . . 3 7 Classes Destroyed 10 | 1 2 4 2 1 Worker 1 | . . . 1 . Tunneler 1 | 1 . . . . Hauler 1 | . . 1 . . Operator 2 | . . 2 . . Watcher 2 | . 2 . . . Swarmer 20 | . . 4 12 4 Grunt 21 | . 5 10 6 . Sentry 6 | . . 1 . 5 Specialist 1 | . . . . 1 Hunter 2 | . . . 2 . Best Kill Streak 5 | 1 3 5 5 4 Combat Bots Only 5 | . 3 5 4 4 Max Kills in Single Turn 2 | 1 1 1 2 1 Gunslinging . | . . . . . Exploded . | . . . . . Melee . | . . . . . Uniques/NPCs Destroyed . | . . . . . Combat | -11 -10 -9 -8 -8 -------- Run | Yrd Mat Mat Mat Gar Hostile Shots Fired 377 | . 13 72 129 163 Missed 106 | . 5 22 34 45 Hits 271 | . 8 50 95 118 Projectile 271 | . 8 50 95 118 Critical Strikes 12 | . . 2 4 6 Damage Taken 3750 | . 91 590 1144 1925 Core 662 | . 30 79 127 426 Absorbed by Shields . | . . . . . Ignored by Resistances 111 | . . . . 111 Regen/Repaired (Parts) 21 | . . 21 . . Core Remaining (%) 89 | 100 88 80 . . Volleys Fired 169 | 7 13 51 58 40 Largest 2 | 2 2 2 2 2 Hottest 90 | 40 46 90 82 62 Shots Fired 311 | 14 26 102 107 62 Gun 265 | 14 26 102 81 42 Cannon 46 | . . . 26 20 Launcher . | . . . . . Special . | . . . . . Kinetic 282 | 14 26 84 96 62 Thermal . | . . . . . Explosive . | . . . . . Electromagnetic 29 | . . 18 11 . Robot Hit Streak 16 | 4 8 10 16 11 Robot Miss Streak 7 | 2 3 7 5 2 Penetration Max . | . . . . . Secondary Targets 4 | . 1 1 2 . Max Gunslinging Chain 1 | . 1 1 1 . Shots Hit Robots 217 | 8 23 63 77 46 Core Hits 104 | 4 16 35 34 15 Critical Kills 1 | . . . . 1 Critical Parts Destroyed 2 | . . 1 1 . Critical Strikes 4 | . . 1 2 1 Destroy 3 | . . 1 1 1 Blast 1 | . . . 1 . Melee Attacks . | . . . . . Impact . | . . . . . Slashing . | . . . . . Piercing . | . . . . . Sneak Attacks . | . . . . . Combat Hostiles . | . . . . . Follow-up Attacks . | . . . . . Damage Inflicted 3572 | 72 329 995 1297 879 Guns 2773 | 72 329 995 836 541 Cannons 799 | . . . 461 338 Explosions . | . . . . . Melee . | . . . . . Ramming . | . . . . . Kinetic 3309 | 72 329 832 1197 879 Thermal . | . . . . . Explosive . | . . . . . Electromagnetic 263 | . . 163 100 . Impact . | . . . . . Slashing . | . . . . . Piercing . | . . . . . Highest Corruption . | . . . . . Average Corruption . | . . . . . Corruption Purged . | . . . . . Corruption Blocked . | . . . . . Overload Shots . | . . . . . Overflow Damage 11 | . . . 1 10 Projectiles 11 | . . . 1 10 Explosions . | . . . . . Melee . | . . . . . Knockbacks 11 | . . . 11 . Impact . | . . . . . Kinetic 9 | . . . 9 . Secondary 2 | . . . 2 . Self-Inflicted Damage . | . . . . . Shots . | . . . . . Rammed . | . . . . . Targets Rammed . | . . . . . Kicked . | . . . . . Crushed . | . . . . . Highest Temperature 195 | . 4 195 82 127 Average Temperature 45 | . 1 62 30 58 Received Heat Transfer 1338 | . 51 291 441 555 Siege Activations . | . . . . . Martial Activations . | . . . . . Shielding Activations . | . . . . . Robots Disrupted . | . . . . . Combat Hostiles . | . . . . . Robots Corrupted . | . . . . . Combat Hostiles . | . . . . . Parts Fried 1 | . . 1 . . Impact Corruptions . | . . . . . Robots Melted . | . . . . . Combat Hostiles . | . . . . . Parts Melted . | . . . . . Heat Transferred . | . . . . . Parts Sabotaged . | . . . . . Parts Stolen . | . . . . . Parts Stripped . | . . . . . Power Chain Reactions . | . . . . . Alert | -11 -10 -9 -8 -8 ------- Run | Yrd Mat Mat Mat Gar Maximum Alert Level 2 | . . . 1 2 Low Security (%) 66 | 100 100 100 38 . Level 1 24 | . . . 61 55 Level 2 8 | . . . . 44 Level 3 . | . . . . . Level 4 . | . . . . . Level 5 . | . . . . . High Security . | . . . . . Max Security . | . . . . . Peak Influence 470 | 5 87 177 363 470 Initial 230 | . . 9 55 230 Average 165 | . 31 110 211 374 Influence Increases 1410 | 5 138 446 544 277 Destroy 0b10 Robot/C 1000 | . 100 300 400 200 Destroy 0b10 Robot/NC 35 | 5 10 15 5 . Destroy Leader 156 | . 24 62 70 . Allied During Kill 1 | . . . . 1 Successful Hack 41 | . 4 24 7 6 Disable Machine 15 | . . . 15 . Anti-Garrison Action 50 | . . . . 50 Destroy Structure 7 | . . . 2 5 Lose Combat Pursuer 105 | . . 45 45 15 Influence Decreases 1103 | 5 114 339 320 325 Entered New Map 216 | . . 15 76 125 Time Decay 647 | 5 114 314 214 . Lost Part 180 | . . 10 30 140 Lost Ally 60 | . . . . 60 Squads Dispatched 8 | . 1 3 4 . Investigation 2 | . 1 . 1 . Extermination . | . . . . . Reinforcement 3 | . . 3 . . Assault . | . . . . . Garrison 3 | . . . 3 . Intercept . | . . . . . Searches Triggered . | . . . . . Construction Impeded . | . . . . . Haulers Reinforced . | . . . . . Active Scanning Responses . | . . . . . Cargo Convoy Interrupts . | . . . . . Stealth | -11 -10 -9 -8 -8 --------- Run | Yrd Mat Mat Mat Gar Distress Signals 3 | . . 2 1 . Communications Jammed . | . . . . . Distress Signals . | . . . . . Times Spotted 73 | . 8 29 24 12 Peak Tracking Total 5 | . 4 5 5 4 Tactical Retreats 3 | . . 1 1 1 Traps | -11 -10 -9 -8 -8 ------- Run | Yrd Mat Mat Mat Gar Traps Triggered 4 | . 1 . 1 2 Indirectly . | . . . . . Trap Hack Attempts . | . . . . . Triggered . | . . . . . Disarmed . | . . . . . Reprogrammed . | . . . . . Reused . | . . . . . Traps Extracted . | . . . . . Installed . | . . . . . Triggered . | . . . . . Machines | -11 -10 -9 -8 -8 ---------- Run | Yrd Mat Mat Mat Gar Machines Disabled 2 | . . . 1 1 Max in Single Turn 1 | . . . 1 1 Garrison Relay 1 | . . . . 1 Machines Repaired . | . . . . . Machines Dismantled . | . . . . . Machines Sabotaged . | . . . . . Overloaded Fab Kills . | . . . . . Hacking | -11 -10 -9 -8 -8 --------- Run | Yrd Mat Mat Mat Gar Machines Accessed 14 | . 3 6 3 2 Terminals 11 | . 2 5 2 2 Fabricators . | . . . . . Repair Stations 1 | . . 1 . . Recycling Units 1 | . 1 . . . Scanalyzers . | . . . . . Garrison Access 1 | . . . 1 . Total Hacks 31 | . 7 14 8 2 Successful 16 | . 2 10 3 1 Failed 15 | . 5 4 5 1 Catastrophic 4 | . . 2 2 . Database Lockouts . | . . . . . Manual 21 | . 6 8 7 . Terminals 27 | . 6 12 7 2 Fabricators . | . . . . . Repair Stations 2 | . . 2 . . Recycling Units 1 | . 1 . . . Scanalyzers . | . . . . . Garrison Access 1 | . . . 1 . Terminal Hacks 12 | . 1 8 2 1 Open Door 1 | . . . . 1 Emergency Access Points 1 | . . 1 . . Maintenance Status 1 | . 1 . . . Security Status 1 | . . 1 . . Investigation Status 1 | . . 1 . . Reinforcement Status 1 | . . 1 . . Assault Status 1 | . . 1 . . Coupling Status 1 | . . 1 . . Recall Investigation 1 | . . . 1 . Recall Reinforcements 1 | . . . 1 . Zone Layout 2 | . . 2 . . Fabricator Hacks . | . . . . . Repair Station Hacks 2 | . . 2 . . Scan Component 1 | . . 1 . . Repair 1 | . . 1 . . Recycling Unit Hacks 1 | . 1 . . . Report Inventory 1 | . 1 . . . Scanalyzer . | . . . . . Garrison Access Hacks 1 | . . . 1 . Unlock Access 1 | . . . 1 . Unauthorized Hacks . | . . . . . Terminals . | . . . . . Fabricators . | . . . . . Repair Stations . | . . . . . Recycling Units . | . . . . . Scanalyzers . | . . . . . Garrison Access . | . . . . . Data Cores Recovered . | . . . . . Used . | . . . . . Hacking Detections 10 | . 2 4 3 1 Full Trace Events . | . . . . . Feedback Events . | . . . . . Feedback Blocked . | . . . . . Robot Schematics Acquired . | . . . . . Robots Built . | . . . . . Authchips . | . . . . . Time . | . . . . . Total Robot Build Rating . | . . . . . Part Schematics Acquired . | . . . . . Parts Built . | . . . . . Authchips . | . . . . . Time . | . . . . . Total Part Build Rating . | . . . . . Parts Repaired 1 | . . 1 . . Time 26 | . . 26 . . Parts Recycled . | . . . . . Recycled Matter . | . . . . . Retrieved Matter . | . . . . . Retrieved Components . | . . . . . Parts Scanalyzed . | . . . . . Part Schematics Acquired . | . . . . . Parts Damaged . | . . . . . Bothacking | -11 -10 -9 -8 -8 ------------ Run | Yrd Mat Mat Mat Gar Used RIF Installer . | . . . . . Robots Hacked . | . . . . . Non-combat . | . . . . . Combat . | . . . . . Robot Hacks Applied . | . . . . . Relay Couplers Released 4 | . . . . 4 Machine Destruction 4 | . . . . 4 Fabnet Peak Effective % . | . . . . . Robots Rewired 3 | . . . . 3 Allies Hacked . | . . . . . Hacks Repelled . | . . . . . Allies | -11 -10 -9 -8 -8 -------- Run | Yrd Mat Mat Mat Gar Total Allies 3 | . . . . 3 Largest Group 1 | . . . . 1 Highest-Rated Group 20 | . . . . 20 Highest-Rated Ally 20 | . . . . 20 Total Orders . | . . . . . Ally Attacks 10 | . . . . 10 Total Damage 282 | . . . . 282 Kills . | . . . . . Allies Corrupted . | . . . . . Allies Melted . | . . . . . Intel | -11 -10 -9 -8 -8 ------- Run | Yrd Mat Mat Mat Gar Active Infowar (turns) 893 | . 254 131 446 62 Terrain 893 | . 254 131 446 62 Robot Analysis Total . | . . . . . Derelict Logs Recovered . | . . . . . Drone Launches . | . . . . . Drone Recoveries . | . . . . . Exploration | -11 -10 -9 -8 -8 ------------- Run | Yrd Mat Mat Mat Gar Turns Passed 2137 | 122 347 791 446 431 Spaces Moved 1125 | 77 226 415 179 228 Core 5 | 5 . . . . Treads 4 | . . . . 4 Legs 1116 | 72 226 415 179 224 Wheels . | . . . . . Hover . | . . . . . Flight . | . . . . . Fastest Speed 50 | 50 120 120 120 90 Average Speed 118 | 119 120 120 120 111 Slowest Speed 160 | 150 120 120 120 160 Overloaded Moves . | . . . . . Propulsion Burnouts . | . . . . . Robots Hopped . | . . . . . Potential Cave-ins . | . . . . . Cave-ins Triggered . | . . . . . Exploration Rate (%) 26 | 4 37 36 17 37 Regions Visited 4 Branch Regions . Pre-discovered Areas . | . . . . . Known Exits Taken 1 | . . . 1 . Unknown Exits Taken 3 | 1 1 1 . . Scrap Searched . | . . . . . Spaces Dug . | . . . . . Terrain Destroyed 2 | . . . 2 . Melee . | . . . . . Projectile 2 | . . . 2 . AOE . | . . . . . Terrain Rammed . | . . . . . Walls Destroyed . | . . . . . Machines Disabled . | . . . . . Actions | -11 -10 -9 -8 -8 --------- Run | Yrd Mat Mat Mat Gar Total 1630 | 92 277 605 309 347 Wait 190 | . 20 109 41 20 Move 1121 | 76 225 414 178 228 Hop . | . . . . . Pick Up 27 | 1 11 5 6 4 Fast Attach 15 | 6 1 2 2 4 Attach 14 | . . 3 4 7 Detach . | . . . . . Swap 30 | 2 2 12 9 5 Drop 32 | . 5 9 11 7 Fire 169 | 7 13 51 58 40 Melee . | . . . . . Ram . | . . . . . Kick . | . . . . . Crush . | . . . . . Escape Stasis . | . . . . . Rewire 32 | . . . . 32 Trap . | . . . . . Miscellaneous . | . . . . . Route ------- -11/Scrapyard -10/Materials -9/Materials -8/Materials -8/Garrison History --------- Turn | Location | Event 17 | -11/Scrapyard | Discovered new exit (range 14) 123 | -11/Scrapyard | Entered Materials 309 | -10/Materials | Build established: Mutant 315 | -10/Materials | Discovered new exit (range 15) 470 | -10/Materials | Entered another Materials area 470 | -9/Materials | Evolved 2 slots: Propulsion x2 939 | -9/Materials | Build established: Scavenger-Mutant 1096 | -9/Materials | Repaired Ion Engine 1237 | -9/Materials | Discovered new exit (range 11) 1261 | -9/Materials | Entered another Materials area 1261 | -8/Materials | Evolved 2 slots: Utility x2 1415 | -8/Materials | Garrison activated, responded to threat 1706 | -8/Materials | Identified exit to Garrison 1707 | -8/Materials | Entered Garrison 1743 | -8/Garrison | Triggered checkpoint 1779 | -8/Garrison | Garrison Relay disabled 1861 | -8/Garrison | Triggered checkpoint 1885 | -8/Garrison | Triggered checkpoint 2027 | -8/Garrison | Spotted B-75 Beast 2050 | -8/Garrison | Core integrity fell below 50% 2075 | -8/Garrison | Lost 4 parts (1n2u1w) 2107 | -8/Garrison | Core integrity fell below 20% 2138 | -8/Garrison | Destroyed by B-75 Beast with Magnetic Acceleration Cannon Last Messages --------------- 02106_ Sml. Storage Unit destroyed. 02107_ Attempting to rewire BU-LCI(b). 02108_ BU-LCI(b) rewired. 02109_ Acquired 21 matter. 02109_ Hvy. EM Pulse Gun destroyed. 02111_ Attempting to rewire TZ-E74(g). 02115_ TZ-E74(g) rewired. 02116_ TZ-E74(g) destroyed. 02117_ Acquired Hrd. Light Armor Plating. 02119_ BU-LCI(b) Imp. Deuterium Engine blasted off. 02120_ Acquired 47 matter. 02122_ BU-LCI(b) destroyed. 02126_ Slug penetrates B-75 Beast. 02128_ Hvy. Assault Rifle destroyed. 02128_ Critical hit (Blast). 02133_ Hrd. Light Armor Plating blasted off. 02133_ Hacking Suite destroyed. 02133_ Slug penetrates B-75 Beast. 02138_ Critical hit (Meltdown: +240). Map ----- +----------------------------------------------------+ | | | | | | | | | | | | | | | | | | | | | | | | | | | | | | | | | ?????????????????????????????????????????????????? | | ?????????????????????????????????????????????????? | | ?????????????????????????????????????????????????? | | ?????????????????????????????????????????????????? | | ?????????????????????????????????????????????????? | | ?????????????????????????????????????????????????? | | ?????????????????????????????????????????????????? | | ?????????????????????????????????????????????????? | | ????????????????????#######??????????????????????? | | ????????????????????#=BB!@#??????????????????????? | | ????????????????????#!BB!%#??????????????????????? | | ???????????????????## Y####??????????????????????? | | ???????????????????#T ##?????????????????????? | | ???????????????????## #?????????????????????? | | ????????????????????# #?????????????????????? | | ????????????????????# ##?????????????????????? | | ???????????????????#### #??????????????????????? | | ???????????######?## #??????????????????????? | | ???????????#! !?## !! ! #?????????????????????? | | ???????????#! !?# #?????????????????????? | | ?????????#### #### ##?????????????????????? | | ?????????# #??????????????????????? | | ?????????# # + #?????????????????????? | | ????????????# ## [##?????????????????????? | | ????????????# ## #! [#??????????????????????? | | ????????????# ######!!! [#??????????????????????? | | ????????????# #????#######??????????????????????? | | ????????????# #?????????????????????????????????? | | ????????????# #?????????????????????????????????? | | ????????????# #?????????????????????????????????? | | ????????????# #?????????????????????????????????? | | ????????????# #?????????????????????????????????? | | ??## ######## ###########???????????????????????? | | #???????????????????????? | +----------------------------------------------------+ Best States ------------- Heat Dissipation 31 Energy Generation 14 Energy Capacity 265 Matter Stores 300 Matter Capacity 300 Sight Range 16 Terrain Scan Range 14 Terrain Scan Density 10 Armor Coverage 375 Resistance: TH 20 Evasion (%) 55 Recoil Reduction 2 Offensive Hacking 10 Item Schematics ----------------- None Robot Schematics ------------------ None Fabricated ------------ Nothing Repaired ---------- Ion Engine | 65% | -9/Materials Alien Tech Used ----------------- None Achievements -------------- root@ Challenges ------------ None Game ------ Seed SuperdenseFactoryAutohacker Manual? 0 Play Time 00:44:30 Cumulative 64.4 hours Start 2025.06.16 @ 17:20:42 End 2025.06.16 @ 18:11:37 Sessions 1 Manual Loads 0 Difficulty Rogue Special Mode None Game No. 62 Rogue 62 Adventurer 0 Explorer 0 Win Type - Total 0 Types 0/0/0/0/0/0/0/0/0/0 Lore% 33 Gallery% 36 Achievement% 32 Wizard Run 0 Options --------- Layout 1 ASCII 1 Keyboard 0 Movement Numpad Keybinds 0 Fullscreen 1 Font 24/Smallcaps Map View 50x35 Zoom Use 0% Tactical HUD 1 Map Filters NONE Filters NONE Steam 1 RUN: 7bfbdc20-8de7-4187-b3d7-bb5e88fcffa8